fUST/lending_fUST_20241227
["ID","MTS","AMOUNT","RATE_DAILY","PERIOD"]
[346753754,1735264190437,-406.84020381,0.00010658,2]
[346753755,1735264190479,-500.0,0.00010658,2]
[346753756,1735264190519,-500.0,0.00010658,2]
[346753757,1735264190562,-500.0,0.00010658,2]
[346753758,1735264190614,-500.0,0.00010658,2]
[346753759,1735264190666,-500.0,0.00010658,2]
[346753760,1735264190712,-500.0,0.00010658,2]
[346753761,1735264190753,-198.67714398,0.00010658,2]
[346753762,1735264190792,-502.22535263,0.00010658,2]
[346753763,1735264190833,-500.0,0.00010658,2]
[346753764,1735264190875,-500.0,0.00010658,2]
[346753765,1735264190915,-510.43520972,0.00010658,2]
[346753766,1735264190957,-500.0,0.00010658,2]
[346753767,1735264191001,-500.0,0.00010658,2]
[346753768,1735264191049,-500.0,0.00010659,2]
[346753769,1735264191091,-500.0,0.00010659,2]
[346753770,1735264191131,-500.0,0.00010659,2]
[346753771,1735264191169,-500.0,0.00010659,2]
[346753772,1735264191209,-210.30772822,0.00010659,2]
[346753773,1735264191253,-500.0,0.00010659,2]
[346753774,1735264191295,-500.0,0.00010659,2]
[346753775,1735264191336,-500.0,0.0001066,2]
[346753776,1735264191378,-500.0,0.0001066,2]
[346753777,1735264191424,-503.20269975,0.0001066,2]
[346753778,1735264191469,-501.10543736,0.0001066,2]
[346753779,1735264191513,-500.0,0.0001066,2]
[346753780,1735264191559,-500.0,0.0001066,2]
[346753781,1735264191603,-500.99116966,0.0001066,2]
[346753782,1735264191648,-500.0,0.0001066,2]
[346753783,1735264191690,-500.80812751,0.0001066,2]
[346753784,1735264191736,-500.0,0.0001066,2]
[346753785,1735264191782,-500.0,0.0001066,2]
[346753786,1735264191893,-501.28996419,0.0001066,2]
[346753787,1735264191936,-500.0,0.0001066,2]
[346753788,1735264191982,-500.0,0.0001066,2]
[346753789,1735264192024,-501.24174457,0.0001066,2]
[346753790,1735264192066,-500.0,0.0001066,2]
[346753791,1735264192109,-505.06236058,0.0001066,2]
[346753792,1735264192150,-500.65932057,0.0001066,2]
[346753793,1735264192193,-500.0,0.0001066,2]
[346753794,1735264192237,-503.78616987,0.0001066,2]
[346753795,1735264192277,-500.0,0.0001066,2]
[346753796,1735264192318,-500.0,0.0001066,2]
[346753797,1735264192355,-501.00513353,0.0001066,2]
[346753798,1735264192397,-500.0,0.0001066,2]
[346753799,1735264192441,-500.0,0.0001066,2]
[346753800,1735264192484,-500.0,0.0001066,2]
[346753801,1735264192527,-500.0,0.0001066,2]
[346753802,1735264192567,-500.0,0.0001066,2]
[346753803,1735264192607,-500.0,0.0001066,2]
[346753804,1735264192648,-283.76145703,0.0001066,2]
[346753805,1735264192689,-500.0,0.0001066,2]
[346753806,1735264192733,-500.0,0.0001066,2]
[346753807,1735264192779,-500.0,0.0001066,2]
[346753808,1735264192827,-500.0,0.0001066,2]
[346753809,1735264192872,-488.49441371,0.0001066,2]
[346753810,1735264192918,-506.41697892,0.0001066,2]
[346753811,1735264192962,-500.71300892,0.0001066,2]
[346753812,1735264193012,-476.52116996,0.0001066,2]
[346753813,1735264193060,-500.0,0.0001066,2]
[346753814,1735264193108,-500.0,0.0001066,2]
[346753815,1735264193152,-264.25984148,0.0001066,2]
[346753816,1735264193194,-504.42341122,0.0001066,2]
[346753817,1735264193233,-504.74764124,0.0001066,2]
[346753818,1735264193273,-500.0,0.0001066,2]
[346753819,1735264193314,-500.34991404,0.0001066,2]
[346753820,1735264193353,-500.0,0.0001066,2]
[346753821,1735264193396,-500.0,0.0001066,2]
[346753822,1735264193439,-501.40949694,0.0001066,2]
[346753823,1735264193482,-501.28667263,0.0001066,2]
[346753824,1735264193524,-500.0,0.0001066,2]
[346753825,1735264193567,-501.84745218,0.0001066,2]
[346753826,1735264193608,-500.0,0.0001066,2]
[346753827,1735264193651,-237.41444174,0.0001066,2]
[346753828,1735264193693,-500.0,0.0001066,2]
[346753829,1735264193739,-500.0,0.0001066,2]
[346753830,1735264193785,-507.96373494,0.0001066,2]
[346753831,1735264193831,-2775.63,0.0001066,2]
[346753832,1735264193877,-500.0,0.0001066,2]
[346753833,1735264193922,-500.0,0.00010661,2]
[346753834,1735264193965,-500.0,0.00010661,2]
[346753835,1735264194012,-492.88967352,0.00010661,2]
[346753836,1735264194057,-502.41396857,0.00010661,2]
[346753837,1735264194103,-503.5753818,0.00010661,2]
[346753838,1735264194145,-501.12732024,0.00010661,2]
[346753839,1735264194251,-501.83254059,0.00010661,2]
[346753840,1735264194293,-501.09083949,0.00010661,2]
[346753841,1735264194334,-501.97425601,0.00010661,2]
[346753842,1735264194377,-500.74860895,0.00010661,2]
[346753843,1735264194421,-500.42716869,0.00010661,2]
[346753844,1735264194465,-500.83008208,0.00010661,2]
[346753845,1735264194507,-501.18827869,0.00010661,2]
[346753846,1735264194550,-501.22985823,0.00010661,2]
[346753847,1735264194592,-500.0,0.00010661,2]
[346753848,1735264194634,-501.44586384,0.00010661,2]
[346753849,1735264194675,-501.42606712,0.00010661,2]
[346753850,1735264194718,-500.0,0.00010661,2]
[346753851,1735264194761,-500.95824997,0.00010661,2]
[346753852,1735264194806,-502.08824874,0.00010661,2]
[346753853,1735264194852,-500.69073586,0.00010661,2]
[346753854,1735264194902,-500.0,0.00010661,2]
[346753855,1735264194948,-500.55486982,0.00010661,2]
[346753856,1735264194993,-500.0,0.00010661,2]
[346753857,1735264195038,-503.89537958,0.00010661,2]
[346753858,1735264195085,-500.46944382,0.00010661,2]
[346753859,1735264195130,-500.0,0.00010661,2]
[346753860,1735264195171,-502.10794084,0.00010661,2]
[346753861,1735264195213,-502.52140937,0.00010661,2]
[346753862,1735264195252,-501.23192038,0.00010661,2]
[346753863,1735264195293,-501.20555931,0.00010661,2]
[346753864,1735264195332,-502.02754045,0.00010661,2]
[346753865,1735264195372,-501.95832521,0.00010661,2]
[346753866,1735264195415,-504.18883048,0.00010661,2]
[346753867,1735264195456,-500.93052545,0.00010661,2]
[346753868,1735264195496,-500.56893365,0.00010661,2]
[346753869,1735264195538,-500.0,0.00010661,2]
[346753870,1735264195580,-500.41309662,0.00010661,2]
[346753871,1735264195623,-501.68716311,0.00010661,2]
[346753872,1735264195663,-207.35414459,0.00010661,2]
[346753873,1735264195704,-502.05333971,0.00010661,2]
[346753874,1735264195745,-501.50484448,0.00010661,2]
[346753875,1735264195788,-303.36865087,0.00010661,2]
[346753876,1735264195832,-501.43975526,0.00010661,2]
[346753877,1735264195876,-500.0,0.00010661,2]
[346753878,1735264195923,-500.0,0.00010661,2]
[346753879,1735264195972,-500.65550028,0.00010661,2]
[346753880,1735264196018,-500.0,0.00010661,2]
[346753881,1735264196066,-500.0,0.00010661,2]
[346753882,1735264196113,-500.0,0.00010661,2]
[346753883,1735264196158,-502.7548919,0.00010661,2]
[346753884,1735264196212,-500.0,0.00010661,2]
[346753885,1735264196265,-500.0,0.00010661,2]
[346753886,1735264196320,-500.0,0.00010661,2]
[346753887,1735264196368,-500.0,0.00010661,2]
[346753888,1735264196424,-500.0,0.00010661,2]
[346753889,1735264196479,-500.0,0.00010661,2]
[346753890,1735264196591,-518.94179261,0.00010661,2]
[346753891,1735264196650,-500.0,0.00010661,2]
[346753892,1735264196706,-500.41815299,0.00010661,2]
[346753893,1735264196754,-500.6806723,0.00010661,2]
[346753894,1735264196801,-500.0,0.00010661,2]
[346753895,1735264196859,-500.83484756,0.00010661,2]
[346753896,1735264196906,-500.94663321,0.00010661,2]
[346753897,1735264196951,-500.0,0.00010661,2]
[346753898,1735264196998,-501.58775712,0.00010661,2]
[346753899,1735264197048,-500.61480747,0.00010661,2]
[346753900,1735264197096,-500.96299267,0.00010661,2]
[346753901,1735264197143,-1294.13,0.00010661,2]
[346753902,1735264197187,-500.0,0.00010662,2]
[346753903,1735264197227,-500.0,0.00010662,2]
[346753904,1735264197266,-500.44742257,0.00010673,2]
[346753905,1735264197305,-503.09139737,0.00010673,2]
[346753906,1735264197346,-304.84602827,0.00010673,2]
[346753907,1735264197388,-500.0,0.00010673,2]
[346753908,1735264197429,-501.55569054,0.00010673,2]
[346753909,1735264197470,-202.29892359,0.00010673,2]
[346753910,1735264197513,-503.72968014,0.00010673,2]
[346753911,1735264197558,-500.0,0.00010673,2]
[346753912,1735264197605,-1065.75444391,0.00010792,2]
[346753913,1735264197651,-500.0,0.00010822,2]
[346753914,1735264197696,-617.01,0.00010822,2]
[346753915,1735264197743,-214.82592403,0.00010822,2]
[346753916,1735264197792,-500.0,0.00010822,2]
[346753917,1735264197837,-500.0,0.00010822,2]
[346753918,1735264197880,-503.55492081,0.00010822,2]
[346753919,1735264197923,-408.4007568,0.00010822,2]
[346753920,1735264197969,-500.0,0.00010822,2]
[346753921,1735264198018,-2707.29,0.00010822,2]
[346753922,1735264198065,-1576.75,0.00010822,2]
[346753923,1735264198107,-500.0,0.00010823,2]
[346753924,1735264198150,-500.0,0.00010823,2]
[346753925,1735264198190,-500.0,0.00010823,2]
[346753926,1735264198228,-500.0,0.00010823,2]
[346753927,1735264198268,-547.31,0.00010823,2]
[346753928,1735264198305,-500.0,0.00010823,2]
[346753929,1735264198344,-500.0,0.00010823,2]
[346753930,1735264198384,-500.0,0.00010823,2]
[346753931,1735264198425,-170.01516418,0.00010823,2]
[346753932,1735264198466,-500.0,0.00010823,2]
[346753933,1735264198507,-500.0,0.00010823,2]
[346753934,1735264198551,-522.19,0.00010823,2]
[346753935,1735264198592,-500.0,0.00010823,2]
[346753936,1735264198632,-512.97497892,0.00010823,2]
[346753937,1735264198671,-500.0,0.00010823,2]
[346753938,1735264198789,-500.0,0.00010823,2]
[346753939,1735264198832,-8424.46,0.00010823,2]
[346753940,1735264198883,-500.0,0.00010823,2]
[346753941,1735264198936,-500.0,0.00010823,2]
[346753942,1735264198983,-515.15728144,0.00010823,2]
[346753943,1735264199025,-500.0,0.00010823,2]
[346753944,1735264199068,-500.0,0.00010823,2]
[346753945,1735264199112,-515.22410974,0.00010823,2]
[346753946,1735264199159,-500.0,0.00010823,2]
[346753947,1735264199203,-500.0,0.00010823,2]
[346753948,1735264199251,-500.0,0.00010823,2]
[346753949,1735264199296,-500.0,0.00010823,2]
[346753950,1735264199342,-511.60212973,0.00010824,2]
[346753951,1735264199390,-298.69524543,0.00010824,2]
[346753952,1735264199437,-500.0,0.00010824,2]
[346753953,1735264199485,-178.78902898,0.00010824,2]
[346753954,1735264199530,-609.71989243,0.00010824,2]
[346753955,1735264199582,-500.0,0.00010824,2]
[346753956,1735264199632,-500.0,0.00010824,2]
[346753957,1735264199678,-356.28991986,0.00010824,2]
[346753958,1735264199726,-500.0,0.00010824,2]
[346753959,1735264199774,-500.0,0.00010824,2]
[346753960,1735264199819,-500.0,0.00010824,2]
[346753961,1735264199868,-500.0,0.00010824,2]
[346753962,1735264199923,-500.0,0.00010824,2]
[346753963,1735264199971,-349.5726807,0.00010824,2]
[346753964,1735264200032,-443.07518902,0.00010824,2]
[346753965,1735264200077,-500.0,0.00010824,2]
[346753966,1735264200124,-500.0,0.00010824,2]
[346753967,1735264200172,-500.0,0.00010824,2]
[346753968,1735264200225,-500.0,0.00010824,2]
[346753969,1735264200271,-570.57185737,0.00010824,2]
[346753970,1735264200318,-500.0,0.00010824,2]
[346753971,1735264200366,-511.87450312,0.00010824,2]
[346753972,1735264200420,-500.0,0.00010824,2]
[346753973,1735264200475,-322.38825406,0.00010824,2]
[346753974,1735264200531,-510.15559042,0.00010824,2]
[346753975,1735264200583,-500.0,0.00010824,2]
[346753976,1735264200635,-500.0,0.0001093,2]
[346753977,1735264200683,-500.0,0.0001093,2]
[346753978,1735264200732,-500.0,0.0001093,2]
[346753979,1735264200782,-539.10817775,0.0001093,2]
[346753980,1735264200832,-500.0,0.0001093,2]
[346753981,1735264200885,-500.0,0.0001093,2]
[346753982,1735264200935,-500.0,0.0001093,2]
[346753983,1735264200986,-500.0,0.0001093,2]
[346753984,1735264201036,-500.0,0.00010931,2]
[346753985,1735264201195,-503.7355724,0.00010932,2]
[346753986,1735264201244,-502.40466029,0.00010932,2]
[346753987,1735264201295,-500.0,0.00010932,2]
[346753988,1735264201349,-500.0,0.00010932,2]
[346753989,1735264201402,-502.36397601,0.00010932,2]
[346753990,1735264201456,-500.0,0.00010932,2]
[346753991,1735264201510,-500.0,0.00010932,2]
[346753992,1735264201563,-502.86552972,0.00010932,2]
[346753993,1735264201615,-500.0,0.00010932,2]
[346753994,1735264201672,-504.02342902,0.00010932,2]
[346753995,1735264201728,-501.0480722,0.00010932,2]
[346753996,1735264201782,-500.0,0.00010932,2]
[346753997,1735264201834,-503.94326429,0.00010932,2]
[346753998,1735264201890,-500.0,0.00010932,2]
[346753999,1735264201945,-512.71077672,0.00010932,2]
[346754000,1735264201997,-502.54763042,0.00010932,2]
[346754001,1735264202050,-500.0,0.00010932,2]
[346754002,1735264202107,-500.0,0.00010932,2]
[346754003,1735264202168,-500.0,0.00010933,2]
[346754004,1735264202224,-500.0,0.00010934,2]
[346754005,1735264202281,-500.0,0.00010934,2]
[346754006,1735264202335,-501.56261308,0.00010934,2]
[346754007,1735264202390,-500.0,0.00010934,2]
[346754008,1735264202451,-461.63863106,0.00010934,2]
[346754009,1735264202505,-500.0,0.00010934,2]
[346754010,1735264202558,-500.0,0.00010934,2]
[346754011,1735264202615,-501.91991583,0.00010934,2]
[346754012,1735264202673,-501.83232426,0.00010934,2]
[346754013,1735264202730,-501.27588559,0.00010934,2]
[346754014,1735264202785,-500.0,0.00010934,2]
[346754015,1735264202840,-500.0,0.00010934,2]
[346754016,1735264202892,-503.61352939,0.00010934,2]
[346754017,1735264202947,-548.30443825,0.00010934,2]
[346754018,1735264203009,-500.0,0.00010934,2]
[346754019,1735264203073,-500.0,0.00010934,2]
[346754020,1735264203126,-500.0,0.00010934,2]
[346754021,1735264203178,-501.52759263,0.00010934,2]
[346754022,1735264203234,-500.0,0.00010934,2]
[346754023,1735264203288,-500.77520869,0.00010934,2]
[346754024,1735264203341,-501.41207761,0.00010934,2]
[346754025,1735264203392,-509.18717006,0.00010934,2]
[346754026,1735264203449,-502.62472225,0.00010934,2]
[346754027,1735264203505,-503.77461566,0.00010934,2]
[346754028,1735264203558,-502.53447067,0.00010934,2]
[346754029,1735264203681,-501.92171622,0.00010934,2]
[346754030,1735264203735,-501.90128947,0.00010934,2]
[346754031,1735264203799,-501.9719976,0.00010934,2]
[346754032,1735264203860,-2775.63,0.00010934,2]
[346754033,1735264203918,-500.0,0.00010934,2]
[346754034,1735264203971,-502.0730327,0.00010935,2]
[346754035,1735264204025,-504.92733184,0.00010935,2]
[346754036,1735264204081,-500.0,0.00010935,2]
[346754037,1735264204137,-506.86012929,0.00010935,2]
[346754038,1735264204189,-500.0,0.00010935,2]
[346754039,1735264204245,-220.01166057,0.00010935,2]
[346754040,1735264204307,-502.2392198,0.00010935,2]
[346754041,1735264204359,-236.04529947,0.00010935,2]
[346754042,1735264204422,-503.51220669,0.00010935,2]
[346754043,1735264204477,-595.11318161,0.00010935,2]
[346754044,1735264204541,-503.90914599,0.00010935,2]
[346754045,1735264204595,-500.0,0.00010935,2]
[346754046,1735264204651,-504.5374979,0.00010935,2]
[346754047,1735264204709,-501.55110234,0.00010935,2]
[346754048,1735264204758,-501.51439368,0.00010935,2]
[346754049,1735264204809,-502.71776213,0.00010935,2]
[346754050,1735264204857,-500.84861621,0.00010935,2]
[346754051,1735264204931,-500.0,0.00010935,2]
[346754052,1735264205007,-500.0,0.00010935,2]
[346754053,1735264205085,-1294.13,0.00010935,2]
[346754054,1735264205157,-500.0,0.00010936,2]
[346754055,1735264205230,-500.0,0.00010936,2]
[346754056,1735264205298,-7519.5529198,0.00010959,2]
[346754057,1735264205375,-246.96,0.00011096,2]
[346754058,1735264205451,-617.01,0.00011096,2]
[346754059,1735264205518,-500.0,0.00011096,2]
[346754060,1735264205591,-500.0,0.00011096,2]
[346754061,1735264205664,-500.0,0.00011096,2]
[346754062,1735264205739,-2707.29,0.00011096,2]
[346754063,1735264205810,-1576.75,0.00011096,2]
[346754064,1735264205877,-413.78015724,0.00011097,2]
[346754065,1735264205944,-500.0,0.00011097,2]
[346754066,1735264206011,-500.0,0.00011097,2]
[346754067,1735264206077,-500.0,0.00011097,2]
[346754068,1735264206131,-547.31,0.00011097,2]
[346754069,1735264206186,-500.0,0.00011097,2]
[346754070,1735264206238,-500.0,0.00011097,2]
[346754071,1735264206289,-500.0,0.00011097,2]
[346754072,1735264206479,-500.0,0.00011097,2]
[346754073,1735264206542,-522.19,0.00011097,2]
[346754074,1735264206595,-500.0,0.00011097,2]
[346754075,1735264206645,-361.1432331,0.00011097,2]
[346754076,1735264206695,-500.0,0.00011097,2]
[346754077,1735264206747,-500.0,0.00011097,2]
[346754078,1735264206803,-8424.46,0.00011097,2]
[346754079,1735264206856,-500.0,0.00011097,2]
[346754080,1735264206909,-500.0,0.00011097,2]
[346754081,1735264206962,-500.0,0.00011097,2]
[346754082,1735264207015,-500.0,0.00011097,2]
[346754083,1735264207068,-500.0,0.00011097,2]
[346754084,1735264207123,-500.0,0.00011097,2]
[346754085,1735264207175,-500.0,0.00011097,2]
[346754086,1735264207229,-289.62,0.00011097,2]
[346754087,1735264207283,-500.0,0.00011098,2]
[346754088,1735264207339,-424.74079559,0.00011098,2]
[346754089,1735264207391,-511.93870765,0.00011098,2]
[346754090,1735264207443,-500.0,0.00011098,2]
[346754091,1735264207499,-500.0,0.00011098,2]
[346754092,1735264207551,-500.0,0.00011098,2]
[346754093,1735264207605,-514.31899486,0.00011098,2]
[346754094,1735264207659,-513.10672383,0.00011098,2]
[346754095,1735264207715,-500.0,0.00011098,2]
[346754096,1735264207769,-500.0,0.00011098,2]
[346754097,1735264207824,-357.21166005,0.00011098,2]
[346754098,1735264207880,-500.0,0.00011098,2]
[346754099,1735264207934,-500.0,0.00011098,2]
[346754100,1735264207990,-500.0,0.00011098,2]
[346754101,1735264208052,-500.0,0.00011098,2]
[346754102,1735264208110,-500.0,0.00011204,2]
[346754103,1735264208174,-500.0,0.00011204,2]
[346754104,1735264208230,-500.0,0.00011204,2]
[346754105,1735264208285,-289.19689427,0.00011204,2]
[346754106,1735264208346,-637.56185648,0.00011204,2]
[346754107,1735264208412,-500.0,0.00011204,2]
[346754108,1735264208467,-500.0,0.00011204,2]
[346754109,1735264208532,-500.0,0.00011205,2]
[346754110,1735264208596,-500.0,0.00011206,2]
[346754111,1735264208651,-500.0,0.00011206,2]
[346754112,1735264208714,-500.0,0.00011206,2]
[346754113,1735264208769,-500.0,0.00011206,2]
[346754114,1735264208823,-500.0,0.00011206,2]
[346754115,1735264208885,-511.39242007,0.00011206,2]
[346754116,1735264208937,-500.0,0.00011206,2]
[346754117,1735264208991,-504.95424712,0.00011206,2]
[346754118,1735264209048,-500.0,0.00011206,2]
[346754119,1735264209099,-500.0,0.00011208,2]
[346754120,1735264209149,-500.0,0.00011208,2]
[346754121,1735264209198,-544.4543932,0.00011208,2]
[346754122,1735264209247,-501.8900386,0.00011208,2]
[346754123,1735264209296,-587.76210932,0.00011208,2]
[346754124,1735264209355,-500.0,0.00011208,2]
[346754125,1735264209408,-500.0,0.00011208,2]
[346754126,1735264209468,-500.0,0.00011208,2]
[346754127,1735264209524,-500.0,0.00011208,2]
[346754128,1735264209576,-500.0,0.00011208,2]
[346754129,1735264209630,-506.33120208,0.00011208,2]
[346754130,1735264209682,-2775.63,0.00011208,2]
[346754131,1735264209738,-500.0,0.00011208,2]
[346754132,1735264209789,-500.0,0.00011209,2]
[346754133,1735264209840,-500.0,0.00011209,2]
[346754134,1735264209892,-500.0,0.00011209,2]
[346754135,1735264209943,-586.84929276,0.00011209,2]
[346754136,1735264209994,-500.0,0.00011209,2]
[346754137,1735264210049,-1294.13,0.00011209,2]
[346754138,1735264210108,-504.52662352,0.0001121,2]
[346754139,1735264210157,-500.0,0.0001121,2]
[346754140,1735264210215,-501.78936168,0.00011221,2]
[346754141,1735264210276,-617.01,0.0001137,2]
[346754142,1735264210336,-500.0,0.0001137,2]
[346754143,1735264210393,-500.0,0.0001137,2]
[346754144,1735264210447,-500.0,0.0001137,2]
[346754145,1735264210502,-2707.29,0.0001137,2]
[346754146,1735264210555,-1576.75,0.0001137,2]
[346754147,1735264210607,-500.0,0.00011371,2]
[346754148,1735264210657,-500.0,0.00011371,2]
[346754149,1735264210707,-500.0,0.00011371,2]
[346754150,1735264210760,-547.31,0.00011371,2]
[346754151,1735264210812,-500.0,0.00011371,2]
[346754152,1735264210861,-500.0,0.00011371,2]
[346754153,1735264210914,-500.0,0.00011371,2]
[346754154,1735264210966,-500.0,0.00011371,2]
[346754155,1735264211017,-522.19,0.00011371,2]
[346754156,1735264211066,-500.0,0.00011371,2]
[346754157,1735264211116,-196.32380354,0.00011371,2]
[346754158,1735264211166,-8424.46,0.00011371,2]
[346754159,1735264211215,-591.99852018,0.00011371,2]
[346754160,1735264211348,-500.0,0.00011371,2]
[346754161,1735264211404,-500.0,0.00011371,2]
[346754162,1735264211458,-500.0,0.00011371,2]
[346754163,1735264211508,-500.0,0.00011371,2]
[346754164,1735264211556,-500.0,0.00011371,2]
[346754165,1735264211606,-500.0,0.00011371,2]
[346754166,1735264211653,-500.0,0.00011371,2]
[346754167,1735264211699,-500.0,0.00011372,2]
[346754168,1735264211749,-500.0,0.00011372,2]
[346754169,1735264211804,-195.10822571,0.00011372,2]
[346754170,1735264211856,-500.0,0.00011372,2]
[346754171,1735264211907,-500.0,0.00011372,2]
[346754172,1735264211966,-500.0,0.00011372,2]
[346754173,1735264212021,-512.12156857,0.00011372,2]
[346754174,1735264212073,-500.0,0.00011372,2]
[346754175,1735264212125,-402.28922812,0.00011372,2]
[346754176,1735264212178,-500.0,0.00011372,2]
[346754177,1735264212230,-509.71193025,0.00011478,2]
[346754178,1735264212283,-500.0,0.00011478,2]
[346754179,1735264212334,-500.0,0.00011478,2]
[346754180,1735264212385,-500.0,0.00011478,2]
[346754181,1735264212436,-502.53736238,0.00011479,2]
[346754182,1735264212487,-500.0,0.0001148,2]
[346754183,1735264212537,-509.32981022,0.0001148,2]
[346754184,1735264212586,-610.48845582,0.0001148,2]
[346754185,1735264212636,-505.95024527,0.0001148,2]
[346754186,1735264212685,-504.11657298,0.0001148,2]
[346754187,1735264212737,-500.0,0.0001148,2]
[346754188,1735264212790,-500.0,0.0001148,2]
[346754189,1735264212844,-500.0,0.00011481,2]
[346754190,1735264212899,-250.58699077,0.00011482,2]
[346754191,1735264212954,-503.61521085,0.00011482,2]
[346754192,1735264213004,-500.0,0.00011482,2]
[346754193,1735264213055,-504.11222684,0.00011482,2]
[346754194,1735264213108,-542.50771982,0.00011482,2]
[346754195,1735264213160,-423.38442397,0.00011482,2]
[346754196,1735264213213,-281.88658548,0.00011482,2]
[346754197,1735264213264,-2775.63,0.00011482,2]
[346754198,1735264213316,-500.0,0.00011482,2]
[346754199,1735264213369,-212.00618523,0.00011483,2]
[346754200,1735264213433,-221.09400371,0.00011483,2]
[346754201,1735264213482,-257.86569471,0.00011483,2]
[346754202,1735264213534,-253.2102367,0.00011483,2]
[346754203,1735264213587,-1294.13,0.00011483,2]
[346754204,1735264213637,-500.0,0.00011484,2]
[346754205,1735264213689,-617.01,0.00011644,2]
[346754206,1735264213742,-500.0,0.00011644,2]
[346754207,1735264213796,-500.0,0.00011644,2]
[346754208,1735264213851,-500.0,0.00011644,2]
[346754209,1735264213907,-2707.29,0.00011644,2]
[346754210,1735264213963,-1576.75,0.00011644,2]
[346754211,1735264214016,-359.11916159,0.00011645,2]
[346754212,1735264214070,-500.0,0.00011645,2]
[346754213,1735264214124,-180.12666692,0.00011645,2]
[346754214,1735264214180,-547.31,0.00011645,2]
[346754215,1735264214233,-500.0,0.00011645,2]
[346754216,1735264214282,-500.0,0.00011645,2]
[346754217,1735264214332,-500.0,0.00011645,2]
[346754218,1735264214384,-500.0,0.00011645,2]
[346754219,1735264214444,-522.19,0.00011645,2]
[346754220,1735264214497,-8424.46,0.00011645,2]
[346754221,1735264214549,-500.0,0.00011645,2]
[346754222,1735264214600,-500.0,0.00011645,2]
[346754223,1735264214648,-500.0,0.00011645,2]
[346754224,1735264214696,-500.0,0.00011645,2]
[346754225,1735264214746,-500.0,0.00011645,2]
[346754226,1735264214797,-500.0,0.00011645,2]
[346754227,1735264214848,-500.0,0.00011645,2]
[346754228,1735264214899,-500.0,0.00011646,2]
[346754229,1735264214953,-474.61528261,0.00011646,2]
[346754230,1735264215006,-324.86418702,0.00011646,2]
[346754231,1735264215054,-500.0,0.00011646,2]
[346754232,1735264215103,-500.0,0.00011646,2]
[346754233,1735264215153,-500.0,0.00011646,2]
[346754234,1735264215204,-484.35820639,0.00011646,2]
[346754235,1735264215256,-1065.75444391,0.00011682,2]
[346754236,1735264215307,-500.0,0.00011752,2]
[346754237,1735264215357,-500.0,0.00011752,2]
[346754238,1735264215411,-500.0,0.00011752,2]
[346754239,1735264215464,-500.0,0.00011753,2]
[346754240,1735264215515,-505.54849393,0.00011754,2]
[346754241,1735264215566,-510.0059925,0.00011754,2]
[346754242,1735264215622,-500.0,0.00011754,2]
[346754243,1735264215676,-507.49002929,0.00011756,2]
[346754244,1735264215728,-2775.63,0.00011756,2]
[346754245,1735264215782,-500.0,0.00011756,2]
[346754246,1735264215833,-1294.13,0.00011757,2]
[346754247,1735264215883,-500.0,0.00011758,2]
[346754248,1735264215934,-6081.51,0.00011893,2]
[346754249,1735264215988,-617.01,0.00011918,2]
[346754250,1735264216042,-319.39202994,0.00011918,2]
[346754251,1735264216093,-500.0,0.00011918,2]
[346754252,1735264216143,-512.82753297,0.00011918,2]
[346754253,1735264216196,-2707.29,0.00011918,2]